bitfinex/quotes_ETHUSD_20220226
["timestamp","ask_amount","ask_price","bid_price","bid_amount"]
[1645865286331,1.21263536,2759.3,2759.1,1.8451018]
[1645865287034,1.8134107,2759.6,2759.1,1.8451018]
[1645865287035,1.0,2759.6,2759.1,1.8451018]
[1645865287233,0.01729649,2760.0,2759.1,1.8451018]
[1645865287433,1.0,2759.7,2759.1,1.8451018]
[1645865287632,0.01729649,2760.0,2759.1,1.8451018]
[1645865287936,1.32739598,2759.9,2759.1,2.99979262]
[1645865288233,0.0046591,2759.7,2759.2,0.00465999]
[1645865288486,0.0046591,2759.7,2759.3,0.1449]
[1645865289090,0.01729649,2760.0,2759.3,0.1449]
[1645865289091,0.01729649,2760.0,2759.3,0.5779]
[1645865289291,0.01729649,2760.0,2759.5,1.0]
[1645865289493,0.01729649,2760.0,2759.6,0.1449]
[1645865289692,0.01729649,2760.0,2759.3,0.54364]
[1645865290091,1.0,2761.0,2759.3,0.54364]
[1645865290294,1.0,2761.0,2759.5,0.27183]
[1645865290295,0.95,2761.0,2759.5,0.27183]
[1645865290495,2.15614,2761.0,2759.6,0.14791603]
[1645865290696,0.00434964,2759.8,2759.6,0.14791603]
[1645865290893,0.00434964,2759.8,2759.7,1.40724596]
[1645865291094,0.00434964,2759.8,2759.7,1.40422993]
[1645865291297,4.964e-05,2759.8,2759.7,12.36422993]
[1645865291499,0.01729931,2761.1,2759.9,11.31945036]
[1645865291702,0.01729931,2761.1,2760.3,0.63044]
[1645865291896,0.01729931,2761.1,2760.4,0.1448]
[1645865292389,0.01729931,2761.1,2760.9,1.3587]
[1645865292986,0.02016347,2761.1,2761.0,3.8587]
[1645865293188,0.02016347,2761.1,2761.0,4.0035]
[1645865293387,6.347e-05,2761.1,2761.0,4.0035]
[1645865293589,6.347e-05,2761.1,2761.0,3.8587]
[1645865293786,6.347e-05,2761.1,2761.0,4.5]
[1645865293988,7.63740133,2762.6,2761.0,3.6448]
[1645865294188,7.63740133,2762.6,2761.3,0.27166]
[1645865294189,0.3,2762.0,2761.3,0.27166]
[1645865294389,0.3,2762.0,2761.5,1.40332725]
[1645865294586,7.45,2762.6,2761.5,1.40332725]
[1645865294789,7.45,2762.6,2761.6,3.5]
[1645865294790,8.3996,2762.6,2761.6,3.5]
[1645865294988,8.7583,2762.6,2761.6,3.5]
[1645865295189,7.8087,2762.6,2761.6,3.5]
[1645865295391,7.45,2762.6,2761.6,3.5]
[1645865295889,7.45,2762.6,2761.7,1.0]
[1645865296489,7.45,2762.6,2761.5,3.77163]
[1645865296688,7.45,2762.6,2761.5,3.91643]
[1645865296892,7.45,2762.6,2761.5,4.8218]
[1645865297089,7.45,2762.6,2761.5,5.1805]
[1645865297891,0.00465563,2762.2,2761.5,6.1805]
[1645865298294,0.00465563,2762.2,2761.7,0.3587]
[1645865298491,0.00465563,2762.2,2761.9,0.27157]
[1645865298692,0.00465563,2762.2,2761.9,1.5355]
[1645865298892,7.45,2762.6,2761.9,1.1768]
[1645865299092,0.00465563,2762.2,2761.9,1.1768]
[1645865299293,0.00465563,2762.2,2762.0,1.16543072]
[1645865299494,0.00465563,2762.2,2762.1,3.8587]
[1645865299941,0.01861974,2762.6,2762.1,3.5]
[1645865300146,7.45,2763.3,2762.2,0.27158]
[1645865300341,0.5,2762.4,2762.2,0.27158]
[1645865300546,0.00465557,2762.3,2762.1,4.04312]
[1645865300744,0.00465557,2762.3,2762.2,2.6448]
[1645865300948,0.00465557,2762.3,2762.1,0.54312]
[1645865300949,0.00465557,2762.3,2762.1,0.86632281]
[1645865301144,0.01861948,2762.7,2761.9,1.05003]
[1645865301347,7.9535,2763.3,2761.8,1.0]
[1645865301348,11.3187,2762.9,2761.8,1.0]
[1645865301557,0.0046555,2762.4,2760.7,3.026917]
[1645865301748,0.0046555,2762.4,2760.7,1.4659]
[1645865301945,11.4635,2762.3,2760.7,0.25]
[1645865302149,0.1448,2762.3,2760.7,0.6087]
[1645865302349,0.1448,2762.3,2760.8,3.57952372]
[1645865302545,0.1448,2762.3,2760.8,3.50301586]
[1645865302748,11.13626667,2762.5,2760.8,0.00301586]
[1645865302749,0.00465596,2761.7,2760.8,0.00301586]
[1645865302949,0.00465596,2761.7,2761.0,1.0]
[1645865303149,0.1448,2761.6,2761.0,1.0]
[1645865303786,0.3587,2761.8,2761.0,1.0]
[1645865303988,0.00465612,2761.4,2761.0,1.0]
[1645865304189,0.00465612,2761.4,2760.7,0.25]
[1645865304591,0.1448,2761.3,2760.2,0.00301586]
[1645865304790,11.3187,2761.1,2760.3,0.00301586]
[1645865304989,11.3187,2761.1,2759.9,0.00075036]
[1645865304990,1.38072552,2760.3,2759.9,0.00376622]
[1645865305193,0.8035,2761.0,2759.9,0.00075036]
[1645865305688,0.6587,2761.0,2759.9,0.00075036]
[1645865305890,0.3587,2761.0,2759.9,0.00075036]
[1645865306290,1.35257619,2760.3,2759.9,0.00075036]
[1645865309461,1.35257619,2760.3,2759.6,0.07729324]
[1645865309462,6.5,2760.2,2759.6,0.07729324]
[1645865309862,6.8587,2760.2,2759.5,0.00417668]
[1645865310162,0.90648,2760.0,2759.5,0.00417668]
[1645865310560,0.1449,2759.9,2759.5,0.00417668]
[1645865310764,0.1449,2759.9,2759.1,0.04035807]
[1645865310765,1.34005976,2759.8,2759.1,0.04035807]
[1645865311005,1.69875976,2759.8,2759.1,0.04035807]
[1645865311198,1.69875976,2759.8,2759.5,0.00417634]
[1645865311199,0.1449,2759.7,2759.5,0.00417634]
[1645865311395,12.01145,2759.7,2759.5,0.00417634]
[1645865311596,2.00105,2759.7,2759.5,0.00417634]
[1645865311896,1.05145,2759.7,2759.5,0.00417634]
[1645865312101,7.0,2759.4,2758.6,0.25]
[1645865312299,7.0,2759.4,2758.7,0.06266124]
[1645865312300,5.0,2758.8,2758.7,0.06266124]
[1645865312498,5.0,2758.8,2757.9,0.31]
[1645865312499,0.90699,2758.6,2757.9,0.31]
[1645865312699,0.9496,2758.6,2757.9,0.31]
[1645865313101,0.9496,2758.6,2758.1,1.36125494]
[1645865313299,1.44257185,2758.8,2758.1,1.0]
[1645865313499,1.44257185,2758.8,2758.1,0.708243]
[1645865313702,3.645,2759.6,2758.2,0.3587]
[1645865313899,3.645,2759.6,2758.3,3.5]
[1645865313900,0.145,2759.6,2758.3,3.5]
[1645865314100,4.645,2759.6,2758.1,0.18131]
[1645865314303,0.9496,2759.4,2758.1,0.18131]
[1645865314602,0.1449,2759.7,2758.1,0.88851]
[1645865314830,1.03596797,2759.0,2758.3,1.29865107]
[1645865315030,1.03596797,2759.0,2758.1,0.88851]
[1645865315230,1.03596797,2759.0,2758.1,0.18131]
[1645865315635,0.1449,2759.8,2758.1,0.18131]
[1645865315836,20.96036198,2759.9,2758.3,0.3587]
[1645865316037,20.96036198,2759.9,2758.5,0.7072]
[1645865316239,18.23536198,2759.9,2758.5,0.7072]
[1645865316634,1.40402619,2759.4,2758.7,1.24614671]
[1645865316836,1.40402619,2759.4,2758.6,0.3587]
[1645865317036,1.40402619,2759.4,2758.5,0.7072]
[1645865317235,1.40402619,2759.4,2758.4,0.1813]
[1645865317434,1.40402619,2759.4,2758.4,0.8885]
[1645865317634,1.40402619,2759.4,2758.4,1.79487]
[1645865317834,11.13596198,2759.9,2758.4,0.8885]
[1645865317835,1.19470235,2758.9,2758.4,0.8885]
[1645865318035,1.19470235,2758.9,2758.4,0.1813]
[1645865318236,1.19470235,2758.9,2758.5,0.7072]
[1645865318499,1.19470235,2758.9,2758.4,0.1813]
[1645865319099,1.19470235,2758.9,2758.5,0.7072]
[1645865319300,1.19470235,2758.9,2758.3,0.25020499]
[1645865319704,0.03101376,2759.0,2758.6,0.25020499]
[1645865319903,0.03101376,2759.0,2758.6,3.5]
[1645865320101,0.03101376,2759.0,2758.6,0.18128]
[1645865320707,0.0046443,2758.9,2758.6,0.18592493]
[1645865320907,0.0046443,2758.9,2758.6,1.21814796]
[1645865321304,0.00222516,2758.9,2758.6,1.21814796]
[1645865321704,0.03101376,2759.0,2758.6,1.21350303]
[1645865321904,0.03101376,2759.0,2758.8,1.3275]
[1645865322105,0.03101376,2759.0,2758.9,8.85076334]
[1645865322331,0.03101376,2759.0,2758.9,4.2917]
[1645865322533,50.0,2760.0,2758.9,5.78376334]
[1645865322732,50.0,2760.0,2759.2,0.53992]
[1645865322931,50.0,2760.0,2759.3,0.7917]
[1645865323133,50.0,2760.0,2759.5,0.3587]
[1645865323438,50.0,2760.0,2759.9,0.9688]
[1645865323736,49.2829,2760.0,2759.9,0.9688]
[1645865323935,49.2829,2760.0,2759.9,1.4018]
[1645865324538,49.2829,2760.0,2759.9,0.9544]
[1645865324739,49.2829,2760.0,2759.3,0.79544]
[1645865324936,50.43260051,2760.0,2758.8,1.33535]
[1645865325136,50.43260051,2760.0,2758.9,0.3587]
[1645865325336,50.43260051,2760.0,2758.8,0.97665]
[1645865325540,50.43260051,2760.0,2759.3,0.36244]
[1645865325738,0.00464585,2759.5,2759.3,0.36244]
[1645865325981,1.38158507,2759.4,2759.3,0.36244]
[1645865326186,1.38158507,2759.4,2759.0,0.18126]
[1645865326390,1.38158507,2759.4,2758.8,0.433]
[1645865326584,1.38158507,2759.4,2758.8,0.43599017]
[1645865326787,0.00464597,2759.3,2758.8,0.00299017]
[1645865326982,0.00464597,2759.3,2758.7,0.9544]
[1645865327388,0.00464597,2759.3,2758.8,0.18128]
[1645865327789,1.38158507,2759.4,2758.8,0.18128]
[1645865327989,0.00464606,2759.2,2758.8,0.18128]
[1645865328793,1.33623113,2759.4,2758.8,0.18128]
[1645865329191,0.0046461,2759.1,2759.0,0.02512459]
[1645865329394,1.32045139,2759.4,2759.0,0.02512459]
[1645865329848,0.02305012,2758.8,2758.6,0.00464703]
[1645865330050,0.02305012,2758.8,2758.3,0.1449]
[1645865330248,0.02305012,2758.8,2758.0,1.2044]
[1645865330249,0.02305012,2758.8,2758.0,0.9544]
[1645865330449,1.11166388,2758.8,2758.0,1.2174]
[1645865330752,1.11166388,2758.8,2758.1,1.26516]
[1645865330950,0.02305012,2758.8,2758.3,0.1813]
[1645865331358,0.02305012,2758.8,2758.4,0.3587]
[1645865331553,0.02305012,2758.8,2758.4,0.36253]
[1645865331754,0.02305012,2758.8,2758.4,0.72123]
[1645865332154,0.02305012,2758.8,2758.5,1.03244795]
[1645865332355,0.02305012,2758.8,2758.4,0.72123]
[1645865332756,0.02305012,2758.8,2758.7,0.3587]
[1645865333056,49.2829,2760.0,2758.9,11.3187]
[1645865333256,49.2829,2760.0,2759.1,0.3587]
[1645865333494,49.2829,2760.0,2759.3,1.0]
[1645865333692,49.2829,2760.0,2759.3,0.433]
[1645865334092,0.00464733,2759.7,2759.4,0.18123]
[1645865335096,49.2829,2760.0,2759.4,0.18123]
[1645865335293,0.00464733,2759.7,2759.4,0.18123]
[1645865335895,0.00464733,2759.7,2759.4,2.96180125]
[1645865336096,0.00464733,2759.7,2759.4,0.18123]
[1645865336297,49.2829,2760.0,2759.4,0.18123]
[1645865336500,0.00464733,2759.7,2759.4,0.18123]
[1645865337356,49.2829,2760.0,2759.4,0.18123]
[1645865337759,0.00464733,2759.7,2759.4,0.18123]
[1645865337959,49.23754733,2760.0,2759.4,0.18123]
[1645865338360,49.23754733,2760.0,2759.4,0.53993]
[1645865339162,49.23754733,2760.0,2759.4,0.97293]
[1645865339359,49.23754733,2760.0,2759.5,0.430961]
[1645865339562,49.23754733,2760.0,2759.6,11.9329]
[1645865339774,49.23754733,2760.0,2759.6,0.9729]
[1645865339963,49.23754733,2760.0,2759.6,0.6142]
[1645865340165,49.23754733,2760.0,2759.6,0.9729]
[1645865340365,49.23754733,2760.0,2759.8,1.63798446]
[1645865340569,49.23754733,2760.0,2759.9,0.433]
[1645865340769,49.23754733,2760.0,2759.8,0.433]
[1645865340980,49.23754733,2760.0,2759.8,1.33888]
[1645865341181,49.23754733,2760.0,2759.9,1.1449]
[1645865341381,49.23754733,2760.0,2759.9,1.5779]
[1645865341686,49.23754733,2760.0,2759.9,12.5379]
[1645865341884,49.23754733,2760.0,2759.9,13.74241847]
[1645865342086,49.23754733,2760.0,2759.9,14.10111847]
[1645865342487,49.23754733,2760.0,2759.9,14.27192326]
[1645865342488,41.18931838,2760.0,2759.9,14.27192326]
[1645865342687,41.18931838,2760.0,2759.9,15.27192326]
[1645865342885,35.75542838,2760.0,2759.9,15.27192326]
[1645865343087,5.177e-05,2760.1,2759.9,15.48856326]
[1645865343287,0.01858553,2760.5,2760.2,11.3187]
[1645865343487,7.45,2761.8,2760.5,12.22415]
[1645865343690,7.45,2761.8,2760.7,0.3587]
[1645865343890,7.45,2761.8,2760.9,11.3187]
[1645865344091,7.45,2761.8,2761.1,10.96]
[1645865344290,7.45,2761.8,2761.2,0.90544]
[1645865344494,7.45,2761.8,2761.3,11.57409]
[1645865344759,14.97,2762.5,2761.3,16.92485334]
[1645865344760,7.45,2762.5,2761.3,16.92485334]
[1645865345149,7.45,2762.5,2761.6,11.3187]
[1645865345349,7.45,2762.5,2761.7,12.393]
[1645865345646,7.45,2762.5,2761.8,1.81033]
[1645865345854,1.49851852,2762.4,2761.1,1.2262]
[1645865346451,0.3587,2762.3,2761.1,1.2262]
[1645865346650,1.64331852,2762.4,2761.1,1.2262]
[1645865346651,1.23646155,2761.9,2761.1,1.2262]
[1645865347155,1.23646155,2761.9,2761.1,0.25]
[1645865347350,1.23646155,2761.9,2761.0,1.84434348]
[1645865347351,0.00464671,2761.6,2761.2,0.18112]
[1645865347754,1.38290177,2761.1,2761.0,0.03342348]
[1645865347954,0.00464671,2761.6,2761.0,0.03342348]
[1645865348153,0.00464671,2761.6,2760.8,0.03342348]
[1645865348357,0.3587,2761.7,2760.8,0.03342348]
[1645865348585,0.6698773,2762.3,2760.8,0.03342348]
[1645865348586,0.00464699,2761.2,2760.8,0.03342348]
[1645865349190,0.00464699,2761.2,2760.8,1.03342348]
[1645865349391,0.1448,2762.2,2760.8,1.93899278]
[1645865349589,0.1448,2762.2,2761.3,0.09056]
[1645865349790,0.63643856,2760.9,2760.8,1.03342348]
[1645865350197,0.63643856,2760.9,2760.8,2.37190348]
[1645865350491,0.63643856,2760.9,2760.8,2.87540348]
[1645865350690,0.63643856,2760.9,2760.8,14.33190348]
[1645865351191,0.63643856,2760.9,2760.8,15.69276029]
[1645865351390,0.63643856,2760.9,2760.8,22.45144348]
[1645865352237,0.63643856,2760.9,2760.8,23.78713424]
[1645865352431,0.01858567,2761.4,2760.9,7.55996636]
[1645865352632,0.01858567,2761.4,2761.1,10.96]
[1645865352834,0.01858567,2761.4,2761.3,11.86535]
[1645865353033,7.45,2762.5,2761.3,19.25315]
[1645865353231,7.45,2762.5,2761.4,11.393]
[1645865353431,8.73651056,2762.5,2761.4,12.80900966]
[1645865353634,8.73651056,2762.5,2761.4,11.393]
[1645865353836,7.45,2762.5,2761.4,0.433]
[1645865354036,7.45,2762.5,2761.4,11.393]
[1645865354237,7.45,2762.5,2761.5,11.8653416]
[1645865354437,7.45,2762.5,2761.6,11.86531]
[1645865354640,7.45,2762.5,2761.8,10.96]
[1645865354838,7.45,2762.5,2761.8,11.5378]
[1645865355039,7.45,2762.5,2761.8,0.5778]
[1645865355239,7.45,2762.5,2762.0,0.905179]
[1645865355637,7.45,2762.5,2761.8,1.5778]
[1645865355839,0.0046463,2762.3,2761.8,1.5778]
[1645865356286,0.0046463,2762.3,2762.1,0.03342348]
[1645865356687,7.45,2762.5,2762.1,0.46642348]
[1645865356888,0.00464626,2762.3,2762.1,0.46642348]
[1645865357088,0.00464626,2762.3,2762.2,10.96]
[1645865357288,0.00464626,2762.3,2762.2,13.80963275]
[1645865357489,0.01858227,2762.8,2762.2,13.80963275]
[1645865357490,0.01858227,2762.8,2762.3,7.0]
[1645865357688,0.01858227,2762.8,2762.4,14.893]
[1645865357890,7.45,2763.4,2762.4,0.433]
[1645865358095,7.45,2763.4,2762.4,3.933]
[1645865358394,7.45,2763.4,2762.9,1.0]
[1645865358592,7.45,2763.4,2763.0,0.433]
[1645865358994,7.45,2763.4,2763.0,3.933]
[1645865359191,7.45,2763.4,2763.0,0.5776]
[1645865359395,7.45,2763.4,2763.2,1.0]
[1645865359599,7.45,2763.4,2763.3,15.893]
[1645865359834,7.45,2763.4,2763.3,21.19571301]
[1645865359835,2.023244,2763.4,2763.3,21.19571301]
[1645865360043,7.45,2763.9,2763.3,13.70364967]
[1645865360241,7.45,2764.4,2763.4,0.1446]
[1645865360439,2.44735491,2764.5,2763.5,11.393]
[1645865360645,0.01857937,2763.9,2763.6,0.1446]
[1645865360842,0.01857937,2763.9,2763.7,1.433]
[1645865361440,0.3587,2765.1,2763.7,1.433]
[1645865361641,0.00291293,2763.9,2763.7,15.0376]
[1645865361839,0.00291293,2763.9,2763.8,1.0]
[1645865362040,0.00291293,2763.9,2763.8,1.61102348]
[1645865362441,0.00291293,2763.9,2763.8,13.47562348]
[1645865362641,1.57963612,2764.8,2763.8,13.47562348]
[1645865362642,1.57963612,2764.8,2763.8,2.51562348]
[1645865362842,0.00291496,2764.0,2763.8,2.42016348]
[1645865363043,0.00291496,2764.0,2763.8,0.46642348]
[1645865363701,0.00291496,2764.0,2763.8,11.42642348]
[1645865363901,0.3587,2765.1,2764.0,10.96]
[1645865364100,0.01865724,2764.5,2764.2,17.76076334]
[1645865364306,5.724e-05,2764.5,2764.3,11.393]
[1645865364498,5.724e-05,2764.5,2764.4,10.96]
[1645865364799,5.724e-05,2764.5,2764.4,11.393]
[1645865365004,0.3587,2765.7,2764.8,0.90427]
[1645865365202,7.45,2766.1,2765.0,10.96]
[1645865365402,1.09882306,2765.6,2765.1,0.433]
[1645865365599,1.09882306,2765.6,2765.2,0.433]
[1645865366202,10.5,2765.5,2764.6,1.80849]
[1645865366401,10.5,2765.5,2764.4,0.03342348]
[1645865366402,0.6408992,2765.1,2764.4,0.03342348]
[1645865366601,3.5,2765.0,2764.4,0.03342348]
[1645865366800,5.6408992,2765.1,2764.4,0.03342348]
[1645865366801,0.3587,2764.9,2764.4,2.348e-05]
[1645865367002,0.1446,2764.8,2764.4,2.348e-05]
[1645865367659,1.33594988,2764.7,2764.4,2.348e-05]
[1645865367860,0.5033,2765.0,2764.4,2.348e-05]
[1645865369062,1.24457402,2764.5,2764.4,2.348e-05]
[1645865369265,1.24457402,2764.5,2763.4,0.03394287]
[1645865369266,0.0008,2764.3,2763.4,0.03394287]
[1645865369461,0.3587,2764.2,2763.4,0.03394287]
[1645865369661,0.1446,2764.1,2763.4,0.03394287]
[1645865369962,0.1446,2764.1,2762.1,3.24272]
[1645865370167,1.41556438,2763.1,2762.4,0.90505]
[1645865370361,0.3587,2764.0,2762.4,0.90505]
[1645865370560,0.3587,2764.0,2762.2,1.0]
[1645865370762,0.1446,2763.9,2762.2,1.0]
[1645865371183,0.3587,2763.8,2762.2,1.0]
[1645865371391,0.3587,2762.7,2762.1,1.4326]
[1645865371789,0.3587,2762.7,2762.2,0.90513]
[1645865372188,0.3587,2762.7,2762.1,1.4326]
[1645865372388,0.3587,2763.5,2762.1,1.4326]
[1645865372593,0.3587,2762.8,2762.1,0.4326]
[1645865372792,3.8587,2762.8,2761.9,0.25]
[1645865373598,0.3587,2762.8,2761.9,0.25]
[1645865373796,0.3587,2762.1,2761.3,7.243]
[1645865374841,0.3587,2762.7,2761.3,7.243]
[1645865375040,0.3587,2762.7,2761.6,0.00466753]
[1645865375841,0.3587,2762.7,2761.3,7.243]
[1645865376046,1.24950229,2761.8,2761.3,7.243]
[1645865376647,1.60820229,2761.8,2761.3,7.243]
[1645865377447,1.60820229,2761.8,2761.4,0.00466763]
[1645865378346,1.60820229,2761.8,2761.3,7.243]
[1645865378598,1.24950229,2761.8,2761.5,0.00458006]
[1645865379603,1.24950229,2761.8,2761.3,7.243]
[1645865379604,1.60820229,2761.8,2761.3,7.243]
[1645865379806,1.60820229,2761.8,2761.5,0.00458003]
[1645865380003,12.29950229,2761.8,2761.5,0.00458003]
[1645865380204,0.1448,2761.7,2761.5,0.00458003]
[1645865380503,0.1448,2761.7,2760.0,3.16189168]
[1645865380504,7.3587,2761.5,2760.0,3.16189168]
[1645865380704,7.3587,2761.5,2759.9,0.005]
[1645865381103,18.4087,2761.5,2759.9,0.005]
[1645865381310,0.3587,2761.4,2759.9,0.005]
[1645865382106,0.3587,2761.4,2760.5,0.00436868]
[1645865382388,9.0507702,2761.5,2760.5,0.00436868]
[1645865382389,12.3147112,2761.2,2760.5,0.00436868]
[1645865382589,1.2647112,2761.2,2760.5,0.00436868]
[1645865382789,1.45553055,2761.2,2760.5,0.00436868]
[1645865383194,1.42324467,2760.3,2759.9,0.005]
[1645865383391,0.3587,2761.0,2759.9,0.005]
[1645865383590,0.1449,2761.4,2759.9,0.005]
[1645865384192,0.1449,2761.4,2759.9,0.1498]
[1645865384392,1.30646898,2760.8,2760.0,0.07652584]
[1645865384593,1.30646898,2760.8,2759.9,0.1498]
[1645865384792,1.30646898,2760.8,2760.0,0.07652614]
[1645865385693,0.5036,2761.4,2760.3,0.00466398]
[1645865385694,0.1449,2761.4,2760.3,0.00466398]
[1645865385895,0.3587,2761.5,2760.3,0.00466398]
[1645865386133,0.3587,2761.3,2760.3,0.00466398]
[1645865386729,0.9058541,2761.6,2760.0,1.40933]
[1645865386931,14.1248,2761.7,2760.7,0.00466372]
[1645865387330,6.3857,2761.7,2760.7,0.00466372]
[1645865387528,1.33449941,2761.3,2760.7,0.00466372]
[1645865387930,1.33449941,2761.3,2760.4,0.1448]
[1645865388128,1.33449941,2761.3,2760.9,0.0046636]
[1645865389135,1.33449941,2761.3,2760.6,0.90566]
[1645865389332,1.33449941,2761.3,2761.0,0.00466353]
[1645865389533,6.7444,2761.7,2761.0,0.00466353]
[1645865389534,6.3857,2761.7,2761.0,0.00466353]
[1645865390443,6.3857,2761.7,2760.4,0.1448]
[1645865390444,6.3857,2761.7,2760.3,0.1448]
[1645865390643,1.32212902,2761.6,2761.2,0.00466337]
[1645865391543,1.32212902,2761.6,2760.3,0.5035]
[1645865391746,1.32212902,2761.6,2761.3,0.00466334]
[1645865391945,0.00446757,2761.1,2760.2,0.25]
[1645865392148,0.3587,2760.9,2760.2,0.25]
[1645865392346,0.3587,2760.9,2759.9,1.005]
[1645865392548,0.1449,2760.8,2759.9,0.005]
[1645865392945,1.2648743,2760.5,2759.9,0.005]
[1645865393147,1.46405276,2760.4,2759.9,0.005]
[1645865393601,0.1449,2760.3,2759.9,0.005]
[1645865394199,1.0511386,2760.3,2760.0,0.0045071]
[1645865395100,1.0511386,2760.3,2759.9,0.005]
[1645865395302,1.0511386,2760.3,2760.0,0.00450707]
[1645865395699,15.9598386,2760.3,2759.9,7.07e-06]
[1645865395904,16.16315545,2760.3,2759.9,7.07e-06]
[1645865396104,17.17571824,2760.3,2759.9,7.07e-06]
[1645865396309,0.13819997,2760.2,2759.9,7.07e-06]
[1645865396505,1.9577907,2760.1,2759.9,7.07e-06]
[1645865396707,2.8642607,2760.1,2759.9,7.07e-06]
[1645865396910,1.9577907,2760.1,2759.9,7.07e-06]
[1645865397777,1.9577907,2760.1,2759.9,0.00148281]
[1645865397975,0.1449,2760.1,2759.9,0.00148281]
[1645865398176,0.13819997,2760.2,2759.9,0.00148281]
[1645865398779,0.1698295,2760.2,2759.9,7.07e-06]
[1645865398980,0.1698295,2760.2,2759.9,0.00438433]
[1645865399383,0.03162953,2760.2,2759.9,0.00438433]
[1645865399979,0.03162953,2760.2,2759.9,0.43300707]
[1645865400180,0.03162953,2760.2,2759.9,0.43738433]
[1645865400480,0.03162953,2760.2,2760.0,0.1449]
[1645865400680,0.03162953,2760.2,2759.9,0.00438433]
[1645865401096,0.03162953,2760.2,2759.9,7.07e-06]
[1645865401499,0.03162953,2760.2,2759.9,0.00438973]
[1645865402394,0.03162953,2760.2,2759.9,7.07e-06]
[1645865402594,0.03162953,2760.2,2759.9,0.00438973]
[1645865402794,1.02158323,2760.0,2759.9,0.00438973]
[1645865402996,0.03162953,2760.2,2759.9,0.00438973]
[1645865403596,0.03162953,2760.2,2759.9,7.07e-06]
[1645865403798,0.03162953,2760.2,2759.9,0.00438973]
[1645865404002,5.0,2760.1,2759.9,8.973e-05]
[1645865404197,0.3587,2759.8,2759.2,0.00297612]
[1645865404398,7.0,2759.9,2759.0,0.01753595]
[1645865404399,5.0,2759.6,2759.0,0.01753595]
[1645865404599,11.05,2759.4,2759.0,0.01753595]
[1645865404851,3.5,2759.5,2758.8,0.007]
[1645865404852,12.31979983,2759.3,2758.8,0.007]
[1645865405251,5.0,2759.0,2758.8,0.007]
[1645865405453,0.20245099,2759.1,2758.8,0.007]
[1645865405649,1.0,2759.0,2758.8,0.007]
[1645865405851,0.5036,2759.2,2758.8,0.007]
[1645865406049,11.5536,2759.2,2758.8,0.007]
[1645865406249,12.5536,2759.2,2758.6,0.00297612]
[1645865406454,12.5536,2759.2,2757.9,0.06]
[1645865406455,0.3587,2758.7,2757.9,0.06]
[1645865406650,0.90689,2758.8,2757.9,0.06297612]
[1645865406651,0.3587,2758.6,2757.9,0.06297612]
[1645865406850,0.3587,2758.6,2757.9,0.06]
[1645865407250,1.38249397,2758.2,2757.9,0.06]
[1645865407452,3.1,2759.1,2757.9,0.06]
[1645865407453,10.19,2759.1,2757.9,0.06]
[1645865407651,6.0502,2759.9,2758.0,0.3587]
[1645865407852,0.1449,2759.8,2758.2,0.3587]
[1645865408051,0.1449,2759.8,2758.3,0.00297612]
[1645865408252,6.4089,2759.9,2758.4,0.1449]
[1645865408493,1.24279097,2759.0,2758.5,0.00297612]
[1645865408694,1.24279097,2759.0,2758.2,0.14787612]
[1645865408897,1.24279097,2759.0,2758.9,0.00464716]
[1645865409497,0.03163985,2759.3,2758.9,0.00464716]
[1645865409697,0.03163985,2759.3,2758.5,0.00297612]
[1645865409896,0.03163985,2759.3,2758.8,0.00433958]
[1645865410803,0.03163985,2759.3,2758.6,0.00297612]
[1645865411198,0.03163985,2759.3,2758.9,0.00433953]
[1645865412001,0.03163985,2759.3,2758.6,0.00297612]
[1645865412253,0.02847587,2759.3,2759.0,0.0043395]
[1645865413259,0.02847587,2759.3,2758.9,0.5779]
[1645865413457,0.02847587,2759.3,2759.1,0.3587]
[1645865413666,0.02847587,2759.3,2759.2,0.5779]
[1645865413859,0.02847587,2759.3,2759.2,0.433]
[1645865414058,1.20270811,2759.9,2759.2,0.433]
[1645865414260,1.20270811,2759.9,2759.0,0.00433947]
[1645865414461,0.3587,2759.8,2758.9,0.00297612]
[1645865414859,0.3587,2759.8,2759.4,0.00436003]
[1645865415462,7.8388,2760.6,2759.4,0.00436003]
[1645865415463,1.0,2760.4,2759.5,0.7917]
[1645865415661,0.03216933,2760.7,2759.6,1.0]
[1645865415859,0.03216933,2760.7,2759.8,0.3587]
[1645865416093,0.03216933,2760.7,2760.0,0.3587]
[1645865416292,0.03216933,2760.7,2760.2,0.3587]
[1645865416493,0.03216933,2760.7,2760.3,0.7917]
[1645865416697,0.03216933,2760.7,2760.3,15.4866]
[1645865416894,0.03216933,2760.7,2760.5,11.4087]
[1645865417098,0.03216933,2760.7,2760.6,0.433]
[1645865417297,0.00446757,2761.1,2760.6,15.3417]
[1645865417298,0.02190134,2761.1,2760.6,15.3417]
[1645865417499,0.00010134,2761.1,2761.0,11.4087]
[1645865417698,0.00010134,2761.1,2761.0,15.4865]
[1645865417904,0.00435815,2761.2,2761.1,20.21947]
[1645865418097,0.00435815,2761.2,2761.1,21.79727]
[1645865418296,0.00428107,2762.6,2761.1,21.79727]
[1645865418498,1.43786996,2762.5,2761.3,0.3587]
[1645865418697,1.43786996,2762.5,2761.4,0.433]
[1645865419097,1.43786996,2762.5,2761.4,0.5778]
[1645865419297,1.43786996,2762.5,2761.4,1.84188]
[1645865419498,1.09766694,2762.1,2761.4,0.433]
[1645865419775,1.10056179,2762.1,2761.0,0.433]
[1645865420568,1.44187185,2761.5,2761.0,0.433]
[1645865420965,0.00289485,2761.7,2761.0,0.433]
[1645865421764,0.3587,2762.4,2761.0,0.433]
[1645865421966,0.00464525,2761.5,2761.0,0.433]
[1645865422865,1.2620635,2761.8,2761.0,0.433]
[1645865423068,0.00289477,2761.4,2761.0,0.433]
[1645865423728,0.01157682,2761.9,2761.1,5.0]
[1645865423928,0.01157682,2761.9,2761.1,0.433]
[1645865424127,0.3587,2762.0,2761.1,0.433]
[1645865424327,0.1448,2762.5,2761.1,0.433]
[1645865424529,0.3587,2762.3,2761.1,0.45332089]